bitfinex-derivatives/quotes_BTCF0:USTF0_20251119
["timestamp","ask_amount","ask_price","bid_price","bid_amount"]
[1763582333383,0.04274,88927.0,88910.0,0.01355]
[1763582333676,0.04274,88927.0,88926.0,0.04683916]
[1763582333677,0.10887936,88927.0,88926.0,0.04683916]
[1763582334287,0.15161936,88927.0,88926.0,0.00028113]
[1763582335887,0.87321936,88927.0,88894.0,0.3608]
[1763582336082,0.40354,88903.0,88902.0,0.04436]
[1763582336387,0.51244229,88903.0,88902.0,0.04436]
[1763582336992,0.36090229,88903.0,88902.0,0.04655803]
[1763582337198,0.00010229,88903.0,88902.0,0.04655803]
[1763582337387,0.3609687,88923.0,88922.0,0.04436]
[1763582337583,0.4697687,88923.0,88922.0,0.04655803]
[1763582337784,0.0001687,88923.0,88922.0,0.04655803]
[1763582337996,0.1090087,88923.0,88922.0,0.04655803]
[1763582338396,0.1090087,88923.0,88922.0,0.02441803]
[1763582338591,0.1090087,88923.0,88890.0,0.21350397]
[1763582338592,0.5125487,88923.0,88902.0,0.1126102]
[1763582338793,0.3609687,88923.0,88922.0,0.04436]
[1763582339098,0.1090087,88923.0,88922.0,0.15914333]
[1763582339307,0.1110087,88923.0,88922.0,0.04655803]
[1763582340394,0.1527487,88923.0,88922.0,0.00219803]
[1763582340587,0.1537487,88923.0,88922.0,0.04655803]
[1763582340900,0.0011687,88923.0,88922.0,0.04655803]
[1763582341090,0.1100087,88923.0,88922.0,0.04655803]
[1763582341793,0.0011687,88923.0,88922.0,0.04655803]
[1763582341996,0.1100087,88923.0,88922.0,0.04655803]
[1763582342790,0.1110087,88923.0,88922.0,0.04655803]
[1763582343195,0.1100087,88923.0,88922.0,0.04655803]
[1763582343399,0.1110087,88923.0,88922.0,0.04655803]
[1763582343607,0.1100087,88923.0,88922.0,0.04655803]
[1763582344501,0.1110087,88923.0,88922.0,0.04655803]
[1763582344899,0.1100087,88923.0,88922.0,0.04655803]
[1763582345100,0.1110087,88923.0,88922.0,0.04655803]
[1763582345700,0.0011687,88923.0,88922.0,0.04655803]
[1763582346002,0.0021687,88923.0,88922.0,0.04655803]
[1763582346302,0.1100087,88923.0,88922.0,0.04655803]
[1763582346495,0.1110087,88923.0,88922.0,0.04655803]
[1763582346892,0.1569287,88923.0,88922.0,0.04655803]
[1763582347298,0.1100087,88923.0,88922.0,0.04655803]
[1763582347506,0.3608,88932.0,88931.0,0.1568139]
[1763582347801,0.3608,88941.0,88931.0,0.1568139]
[1763582347802,0.04592,88941.0,88940.0,0.04424]
[1763582347998,0.40672,88941.0,88940.0,0.04643803]
[1763582348204,0.5156,88941.0,88940.0,0.04643803]
[1763582348603,0.0001687,88949.0,88948.0,0.04424]
[1763582348790,0.0001687,88949.0,88948.0,0.04643803]
[1763582349391,0.1090487,88949.0,88948.0,0.04643803]
[1763582350005,0.1100487,88949.0,88948.0,0.04643803]
[1763582350299,0.1559687,88949.0,88948.0,0.04643803]
[1763582350502,0.5167687,88949.0,88948.0,0.00219803]
[1763582350999,0.5167687,88949.0,88948.0,0.04643803]
[1763582351396,0.5157687,88949.0,88948.0,0.04643803]
[1763582351598,0.5157687,88949.0,88948.0,0.00219803]
[1763582351799,0.5157687,88949.0,88922.0,0.3608]
[1763582351800,0.04592,88933.0,88922.0,0.3608]
[1763582352000,0.51556,88933.0,88922.0,0.3608]
[1763582352798,0.38536,88933.0,88932.0,0.04660673]
[1763582353000,0.4942,88933.0,88932.0,0.04660673]
[1763582353200,0.51556,88933.0,88932.0,0.04660673]
[1763582353407,0.51556,88933.0,88932.0,0.02469673]
[1763582353600,0.51556,88933.0,88932.0,0.0001687]
[1763582354908,0.3608,88933.0,88932.0,0.06055673]
[1763582355112,0.46964,88933.0,88932.0,0.06055673]
[1763582355404,0.3618,88933.0,88932.0,0.06055673]
[1763582355608,0.15576,88933.0,88932.0,0.04660673]
[1763582356201,0.15576,88933.0,88932.0,0.00236673]
[1763582358901,0.001,88933.0,88932.0,0.04660673]
[1763582359094,0.10984,88933.0,88932.0,0.04660673]
[1763582361102,0.0135,88957.0,88940.0,0.1568025]
[1763582361303,0.15476,88948.0,88947.0,0.02233]
[1763582361903,0.15476,88948.0,88947.0,0.02452803]
[1763582362509,0.15476,88948.0,88936.0,0.38313]
[1763582362510,0.04592,88937.0,88936.0,0.38313]
[1763582362705,0.15476,88937.0,88936.0,0.40723803]
[1763582363705,0.02456,88946.0,88945.0,0.04424]
[1763582364011,0.02656,88948.0,88947.0,0.04424]
[1763582364215,0.001,88948.0,88947.0,0.04643803]
[1763582364407,0.02556,88948.0,88947.0,0.04643803]
[1763582364710,0.1334,88948.0,88947.0,0.04643803]
[1763582365300,0.02456,88948.0,88947.0,0.04643803]
[1763582365513,0.1334,88948.0,88947.0,0.04643803]
[1763582366712,0.15476,88948.0,88947.0,0.04643803]
[1763582367305,0.1334,88948.0,88947.0,0.04643803]
[1763582367613,0.3609687,88949.0,88948.0,0.04457]
[1763582367911,0.0001687,88949.0,88948.0,0.52012043]
[1763582368407,0.1090087,88949.0,88948.0,0.40756803]
[1763582368823,0.1090087,88949.0,88948.0,0.52012043]
[1763582369111,0.1090087,88949.0,88948.0,0.40756803]
[1763582369508,0.0001687,88949.0,88948.0,0.40756803]
[1763582369915,0.40096538,88972.0,88965.0,0.04457]
[1763582370110,0.15291101,88966.0,88965.0,0.04676803]
[1763582370310,0.15291101,88966.0,88965.0,0.00219803]
[1763582371003,0.04379,88960.0,88959.0,0.40537]
[1763582371203,0.04379,88960.0,88959.0,0.40756803]
[1763582371400,0.0575,88960.0,88959.0,0.36299803]
[1763582371609,0.0575,88960.0,88959.0,0.00219803]
[1763582372810,0.04359,88938.0,88936.0,0.03029927]
[1763582373011,0.04359,88932.0,88931.0,0.04626]
[1763582373215,0.04359,88932.0,88931.0,0.04845803]
[1763582374216,0.15243,88938.0,88937.0,0.04626]
[1763582374511,0.04359,88938.0,88937.0,0.04845803]
[1763582374721,0.13143,88938.0,88937.0,0.04845803]
[1763582375312,0.10884,88938.0,88937.0,0.04845803]
[1763582375613,0.0001686,88940.0,88939.0,0.04626]
[1763582375917,0.1090086,88940.0,88939.0,0.40925803]
[1763582376506,0.1090086,88940.0,88939.0,0.04845803]
[1763582377215,0.1315986,88940.0,88939.0,0.04845803]
[1763582377710,0.1090086,88940.0,88939.0,0.04845803]
[1763582378616,0.1525986,88940.0,88939.0,0.04845803]
[1763582378913,0.1315986,88940.0,88939.0,0.04845803]
[1763582380117,0.1525986,88940.0,88939.0,0.04845803]
[1763582380505,0.1090086,88940.0,88939.0,0.04845803]
[1763582381712,0.1315986,88940.0,88939.0,0.04845803]
[1763582382710,0.1090086,88940.0,88939.0,0.04845803]
[1763582383608,0.1315986,88940.0,88939.0,0.04845803]
[1763582383817,0.0227586,88940.0,88939.0,0.04845803]
[1763582384006,0.1315986,88940.0,88939.0,0.04845803]
[1763582384717,0.1525986,88940.0,88939.0,0.04845803]
[1763582386514,0.1090086,88940.0,88939.0,0.04845803]
[1763582387117,0.1315986,88940.0,88939.0,0.04845803]
[1763582387914,0.1315986,88940.0,88939.0,0.16102183]
[1763582388721,0.1090086,88940.0,88939.0,0.16102183]
[1763582391428,0.0001686,88940.0,88939.0,0.16102183]
[1763582392021,0.1090086,88940.0,88939.0,0.04845803]
[1763582392215,0.1525986,88940.0,88939.0,0.07881279]
[1763582392921,0.1525986,88940.0,88939.0,0.19137659]
[1763582394223,0.0437586,88940.0,88939.0,0.19137659]
[1763582394518,0.1525986,88940.0,88939.0,0.19137659]
[1763582394924,0.0001686,88940.0,88939.0,0.19137659]
[1763582395124,0.1315986,88940.0,88939.0,0.19137659]
[1763582395620,0.05675,88952.0,88951.0,0.04626]
[1763582395815,0.04016538,88954.0,88953.0,0.04626]
[1763582395816,0.04359,88954.0,88953.0,0.04626]
[1763582396017,0.15243,88954.0,88953.0,0.04845803]
[1763582396216,0.04359,88954.0,88953.0,0.04845803]
[1763582396425,0.15243,88954.0,88953.0,0.04845803]
[1763582398027,0.15343,88954.0,88953.0,0.04845803]
[1763582399125,0.15443,88954.0,88953.0,0.00219803]
[1763582399725,0.15443,88954.0,88953.0,0.04845803]
[1763582400223,0.002,88954.0,88953.0,0.16100413]
[1763582400414,0.15443,88954.0,88953.0,0.00219803]
[1763582400818,0.15443,88954.0,88946.0,0.03035476]
[1763582401119,0.04359,88947.0,88946.0,0.00219803]
[1763582401322,0.04359,88947.0,88938.0,0.04036831]
[1763582401323,0.04359,88939.0,88938.0,0.03035476]
[1763582401523,0.04359,88934.0,88933.0,0.03035476]
[1763582401724,0.04359,88934.0,88933.0,0.00219803]
[1763582401919,0.04359,88934.0,88933.0,0.04769803]
[1763582402224,0.04536,88934.0,88933.0,0.04769803]
[1763582402518,0.0001686,88942.0,88941.0,0.0455]
[1763582402725,0.1534286,88942.0,88941.0,0.40849803]
[1763582403318,0.1534286,88942.0,88941.0,0.40543267]
[1763582403319,0.0001686,88942.0,88941.0,0.40543267]
[1763582403623,0.002,88954.0,88953.0,0.0455]
[1763582403624,0.001,88954.0,88953.0,0.0455]
[1763582403820,0.15426,88954.0,88953.0,0.40849803]
[1763582404012,0.04542,88954.0,88953.0,0.40849803]
[1763582404217,0.04442,88954.0,88953.0,0.40849803]
[1763582404416,0.15326,88954.0,88953.0,0.40849803]
[1763582404615,0.15326,88954.0,88953.0,0.43887023]
[1763582404616,0.13049,88954.0,88953.0,0.43887023]
[1763582404817,0.15326,88954.0,88953.0,0.43887023]
[1763582405220,0.15426,88954.0,88953.0,0.40849803]
[1763582405617,0.001,88954.0,88953.0,0.40849803]
[1763582405921,0.13249,88954.0,88953.0,0.43887023]
[1763582406225,0.13249,88954.0,88953.0,0.43885515]
[1763582406418,0.11084,88954.0,88953.0,0.40849803]
[1763582406822,0.002,88954.0,88953.0,0.40849803]
[1763582407613,0.0001686,88962.0,88953.0,0.36299803]
[1763582407614,0.05096,88958.0,88953.0,0.36299803]
[1763582407814,0.04442,88954.0,88953.0,0.76929803]
[1763582408230,0.04442,88954.0,88953.0,0.79964322]
[1763582408528,0.04442,88954.0,88953.0,0.76929803]
[1763582408917,0.04442,88954.0,88953.0,0.74644803]
[1763582409121,0.04442,88954.0,88953.0,0.36299803]
[1763582409320,0.04442,88946.0,88945.0,0.03051379]
[1763582409526,0.04442,88946.0,88945.0,0.00236663]
[1763582409922,0.04442,88946.0,88945.0,0.0001686]
[1763582410128,0.04442,88946.0,88945.0,0.00236663]
[1763582410325,0.15322,88946.0,88945.0,0.04786663]
[1763582410633,0.04442,88946.0,88945.0,0.04786663]
[1763582411023,0.15322,88946.0,88945.0,0.00236663]
[1763582411222,0.15322,88946.0,88945.0,0.02501663]
[1763582411421,0.13045,88946.0,88945.0,0.04786663]
[1763582411627,0.06035741,88961.0,88952.0,0.1580466]
[1763582411628,0.04442,88953.0,88952.0,0.1580466]
[1763582411822,0.06035741,88961.0,88960.0,0.0455]
[1763582411823,0.04442,88961.0,88960.0,0.0455]
[1763582412022,0.04442,88957.0,88956.0,0.38345]
[1763582412236,0.01304,88956.0,88947.0,0.03034519]
[1763582412539,0.04442,88949.0,88948.0,0.00219803]
[1763582412720,0.04442,88949.0,88948.0,0.02484803]
[1763582413037,0.04442,88949.0,88948.0,0.04769803]
[1763582414128,0.04542,88949.0,88948.0,0.04769803]
[1763582415032,0.02265,88949.0,88948.0,0.04769803]
[1763582415227,0.002,88949.0,88948.0,0.04769803]
[1763582415425,0.1108,88949.0,88948.0,0.04769803]
[1763582415828,0.1098,88949.0,88948.0,0.04769803]
[1763582416026,0.1108,88949.0,88948.0,0.04769803]
[1763582416828,0.002,88949.0,88948.0,0.04769803]
[1763582417036,0.0001686,88962.0,88961.0,0.0455]
[1763582417231,0.1089686,88962.0,88961.0,0.40849803]
[1763582417530,0.0001686,88962.0,88961.0,0.52103393]
[1763582417836,0.1089686,88962.0,88961.0,0.40849803]
[1763582418038,0.1533886,88962.0,88961.0,0.40849803]
[1763582418233,0.0445886,88962.0,88961.0,0.40849803]
[1763582418537,0.1543886,88962.0,88961.0,0.38564803]
[1763582418738,0.1553886,88962.0,88961.0,0.40849803]
[1763582420030,0.1553886,88962.0,88961.0,0.38564803]
[1763582420227,0.1553886,88962.0,88961.0,0.3608]
[1763582420425,0.1553886,88962.0,88961.0,0.00219803]
[1763582420630,0.1553886,88962.0,88961.0,0.04769803]
[1763582420631,0.0465886,88962.0,88961.0,0.04769803]
[1763582420830,0.1553886,88962.0,88961.0,0.04769803]
[1763582421335,0.1553886,88962.0,88961.0,0.00219803]
[1763582422833,0.1553886,88962.0,88961.0,0.02484803]
[1763582423234,0.0465886,88962.0,88961.0,0.16023393]
[1763582423536,0.1109686,88962.0,88961.0,0.52103393]
[1763582423742,0.1109686,88962.0,88961.0,0.55138007]
[1763582423930,0.1088,88963.0,88961.0,0.52103393]
[1763582424129,0.00028101,88966.0,88965.0,0.05877]
[1763582424337,0.10908101,88966.0,88965.0,0.42176803]
[1763582425031,0.15350101,88966.0,88965.0,0.40849803]
[1763582425430,0.11108101,88966.0,88965.0,0.42176803]
[1763582425634,0.15529101,88966.0,88965.0,0.36299803]
[1763582425938,0.04749101,88966.0,88965.0,0.04527803]
[1763582426141,0.15629101,88966.0,88965.0,0.04527803]
[1763582426437,0.15629101,88966.0,88965.0,0.53203893]
[1763582426438,0.11208101,88966.0,88965.0,0.53203893]
[1763582426631,0.11208101,88966.0,88965.0,0.41950803]
[1763582426830,0.15629101,88966.0,88965.0,0.40607803]
[1763582428245,0.00328101,88966.0,88965.0,0.53203893]
[1763582428439,0.00328101,88966.0,88965.0,0.56236392]
[1763582428646,0.0001686,88974.0,88973.0,0.1556008]
[1763582428844,0.0001686,88974.0,88973.0,0.40607803]
[1763582429353,0.0443786,88974.0,88973.0,0.36299803]
[1763582429541,0.0443786,88974.0,88973.0,0.00219803]
[1763582429838,0.4051786,88974.0,88973.0,0.00219803]
[1763582430243,0.4051786,88974.0,88973.0,0.02395803]
[1763582430439,0.44543949,88974.0,88973.0,0.00219803]
[1763582430837,0.4051786,88974.0,88973.0,0.00219803]
[1763582431443,0.04421,88966.0,88965.0,0.0001686]
[1763582431637,0.04026222,88973.0,88972.0,0.156082]
[1763582431846,0.0001686,88974.0,88973.0,0.04356]
[1763582432052,0.06260222,88990.0,88989.0,0.04356]
[1763582432243,0.04026222,88992.0,88990.0,0.04356]
[1763582432548,0.0453,88992.0,88991.0,0.00219803]
[1763582432751,0.1541,88992.0,88991.0,0.00219803]
[1763582433245,0.0453,88982.0,88974.0,0.1125195]
[1763582433446,0.0453,88982.0,88974.0,0.00219803]
[1763582433651,0.0453,88982.0,88981.0,0.38187]
[1763582433853,0.0453,88982.0,88981.0,0.40655803]
[1763582435151,0.0453,88982.0,88981.0,0.38406803]
[1763582435550,0.0453,88982.0,88981.0,0.02326803]
[1763582435751,0.0453,88982.0,88981.0,0.00219803]
[1763582436453,0.0453,88982.0,88964.0,0.3608]
[1763582436646,0.0453,88967.0,88966.0,0.00219803]
[1763582436851,0.1541,88967.0,88966.0,0.00219803]
[1763582437451,0.1541,88967.0,88966.0,0.04575803]
[1763582438145,0.1541,88967.0,88966.0,0.00219803]
[1763582438550,0.1541,88967.0,88966.0,0.04575803]
[1763582438744,0.1541,88967.0,88966.0,0.00219803]
[1763582439153,0.1541,88967.0,88966.0,0.02326803]
[1763582439358,0.1541,88967.0,88966.0,0.04575803]
[1763582439658,0.1541,88967.0,88966.0,0.00219803]
[1763582442057,0.05844,88950.0,88948.0,0.03029685]
[1763582442263,0.15406,88949.0,88948.0,0.00219803]
[1763582446970,0.15406,88949.0,88948.0,0.04575803]
[1763582447160,0.15406,88949.0,88948.0,0.00219803]
[1763582448261,0.15506,88949.0,88948.0,0.00219803]
[1763582448664,0.0463,88949.0,88948.0,0.00219803]
[1763582448862,0.1551,88949.0,88948.0,0.00219803]
[1763582450666,0.1541,88949.0,88948.0,0.00219803]
[1763582452372,0.1551,88949.0,88948.0,0.00219803]
[1763582453772,0.1541,88949.0,88948.0,0.00219803]
[1763582454370,0.1541,88949.0,88948.0,0.04575803]
[1763582454874,0.02234,88950.0,88949.0,0.1561109]
[1763582455067,0.1541,88950.0,88949.0,0.04575803]
[1763582455875,0.1541,88950.0,88949.0,0.00219803]
[1763582456468,0.1541,88950.0,88949.0,0.04575803]
[1763582457067,0.1541,88950.0,88949.0,0.04861212]
[1763582458173,0.0453,88960.0,88959.0,0.04356]
[1763582458378,0.1541,88960.0,88959.0,0.40655803]
[1763582458680,0.1541,88960.0,88959.0,0.36299803]
[1763582459075,0.1541,88960.0,88959.0,0.00505212]
[1763582459779,0.1541,88960.0,88959.0,0.00285409]
[1763582460075,0.5149,88960.0,88959.0,4.09e-06]
[1763582460268,0.0453,88951.0,88950.0,0.19201321]
[1763582460469,0.0453,88951.0,88950.0,0.02326803]
[1763582460673,0.0453,88951.0,88950.0,0.00219803]
[1763582461076,0.0453,88946.0,88945.0,0.3608]
[1763582461272,0.0453,88946.0,88945.0,0.36299803]
[1763582461975,0.0453,88946.0,88945.0,0.3608]
[1763582462182,0.0453,88946.0,88945.0,0.36299803]
[1763582462770,0.0453,88946.0,88945.0,0.3608]
[1763582463266,0.4061,88946.0,88945.0,0.00219803]
[1763582463469,0.0449,88942.0,88940.0,4.09e-06]
[1763582463670,0.1542,88941.0,88940.0,4.09e-06]
[1763582464481,0.0454,88941.0,88940.0,0.04565212]
[1763582464687,0.04549549,88941.0,88940.0,0.04565212]
[1763582464879,9.549e-05,88941.0,88940.0,0.04565212]
[1763582465075,0.001,88946.0,88945.0,0.04345]
[1763582465383,0.1088,88946.0,88945.0,0.15820423]
[1763582465679,0.13164,88946.0,88945.0,0.15820423]
[1763582465983,0.1088,88946.0,88945.0,0.15820423]
[1763582466280,0.1542,88946.0,88945.0,0.15820423]
[1763582466474,0.1088,88946.0,88945.0,0.15820423]
[1763582466674,0.0402545,88963.0,88953.0,0.1559961]
[1763582466873,0.1089686,88954.0,88953.0,0.15819413]
[1763582467372,0.1318086,88954.0,88953.0,0.15819413]
[1763582468889,0.1543686,88954.0,88953.0,0.15819413]
[1763582469181,0.0455686,88954.0,88953.0,0.15819413]
[1763582469380,0.0001686,88954.0,88953.0,0.15819413]
[1763582469585,0.0454,88967.0,88966.0,0.04345]
[1763582469792,0.1542,88967.0,88966.0,0.04564803]
[1763582470482,0.1542,88967.0,88966.0,0.02446803]
[1763582470673,0.1542,88967.0,88966.0,0.00219803]
[1763582470878,0.1562,88967.0,88966.0,0.00219803]
[1763582471079,0.1562,88967.0,88966.0,0.02446803]
[1763582471281,0.1552,88967.0,88966.0,0.02446803]
[1763582471480,0.1562,88967.0,88966.0,0.02446803]
[1763582471676,0.002,88967.0,88966.0,0.04564803]
[1763582471884,0.1108,88967.0,88966.0,0.04564803]
[1763582472084,0.1108,88967.0,88966.0,0.0759887]
[1763582472279,0.1108,88967.0,88966.0,0.04564803]
[1763582472484,0.002,88967.0,88966.0,0.04564803]
[1763582472973,0.0474,88967.0,88966.0,0.07597315]
[1763582473173,0.0474,88967.0,88966.0,0.04564803]
[1763582473379,0.0474,88967.0,88966.0,0.15817763]
[1763582473682,0.0474,88967.0,88966.0,0.04564803]
[1763582473882,0.002,88967.0,88966.0,0.04564803]
[1763582475291,0.0474,88967.0,88966.0,0.04564803]
[1763582476287,0.0474,88967.0,88966.0,0.13699763]
[1763582476679,0.0474,88967.0,88966.0,0.15817763]
[1763582477086,0.002,88967.0,88966.0,0.15817763]
[1763582477690,0.02484,88967.0,88966.0,0.15817763]
[1763582477880,0.002,88967.0,88966.0,0.15817763]
[1763582478273,0.002,88967.0,88966.0,0.04564803]
[1763582478584,0.0474,88967.0,88966.0,0.00219803]
[1763582479085,0.0474,88967.0,88966.0,0.04564803]
[1763582480279,0.0474,88967.0,88966.0,0.00219803]
[1763582480486,0.0474,88967.0,88966.0,0.04564803]
[1763582481485,0.0474,88967.0,88966.0,0.02446803]
[1763582481787,0.0474,88967.0,88964.0,0.3608]
[1763582481788,0.058,88965.0,88964.0,0.3608]
[1763582482491,0.058,88965.0,88956.0,0.3608]
[1763582482492,0.01141295,88965.0,88956.0,0.3608]
[1763582482679,0.0454,88957.0,88956.0,0.40644803]
[1763582483084,0.0454,88957.0,88956.0,0.04564803]
[1763582483283,0.15416,88957.0,88956.0,0.05951803]
[1763582484485,0.0402545,88964.0,88963.0,0.04345]
[1763582484685,0.15416,88964.0,88963.0,0.04564803]
[1763582485987,0.15416,88964.0,88963.0,0.02446803]
[1763582486188,0.15416,88964.0,88963.0,0.00219803]
[1763582486389,0.15416,88964.0,88963.0,0.04531803]
[1763582486587,0.15516,88964.0,88963.0,0.04531803]
[1763582486791,0.15616,88964.0,88963.0,0.04531803]
[1763582487187,0.15516,88964.0,88963.0,0.04531803]
[1763582487582,0.15616,88964.0,88963.0,0.04531803]
[1763582488184,0.0474,88964.0,88963.0,0.04531803]
[1763582488391,0.11076,88964.0,88963.0,0.04531803]
[1763582488594,0.1564,88964.0,88963.0,0.04531803]
[1763582488786,0.1564,88964.0,88963.0,0.00219803]
[1763582489095,0.1564,88964.0,88948.0,0.38233]
[1763582489096,0.0126,88956.0,88948.0,0.38233]
[1763582489397,0.04564,88949.0,88948.0,0.40392]
[1763582489591,0.1544,88949.0,88948.0,0.40611803]
[1763582490397,0.3608,88961.0,88948.0,0.36299803]
[1763582490604,0.10876,88960.0,88948.0,0.36299803]
[1763582490893,0.10876,88960.0,88949.0,0.1125509]
[1763582491083,0.10876,88960.0,88950.0,0.00219803]
[1763582491084,0.04564,88951.0,88950.0,0.00219803]
[1763582491291,0.04564,88951.0,88950.0,0.02372803]
[1763582491596,0.04564,88951.0,88950.0,0.04531803]
[1763582492883,0.02241,88951.0,88950.0,0.04531803]
[1763582493089,0.15279,88951.0,88950.0,0.04531803]
[1763582499405,0.15279,88951.0,88950.0,0.00219803]
[1763582499588,0.15279,88951.0,88945.0,0.03029291]
[1763582499589,0.04464,88942.0,88941.0,0.03029291]
[1763582499898,0.04464,88942.0,88941.0,0.02473803]
[1763582500201,0.04464,88942.0,88941.0,0.00219803]
[1763582500593,0.04464,88942.0,88941.0,0.02473803]
[1763582500992,0.04464,88942.0,88941.0,0.04802803]
[1763582503698,0.0001686,88950.0,88949.0,0.02254]
[1763582503894,0.0448086,88950.0,88949.0,0.04802803]
[1763582504093,0.0001686,88950.0,88949.0,0.40882803]
[1763582504304,0.3608,88972.0,88971.0,0.04583]
[1763582504495,0.3608,88972.0,88971.0,0.00219803]
[1763582504496,0.5142,88972.0,88971.0,0.00219803]
[1763582504703,0.1534,88972.0,88971.0,0.00219803]
[1763582504899,0.04019304,88982.0,88981.0,0.02254]
[1763582505105,0.04464,88975.0,88974.0,0.05877]
[1763582505405,0.04464,88975.0,88974.0,0.06096803]
[1763582505599,0.04464,88975.0,88974.0,0.00219803]
[1763582505802,0.04464,88975.0,88974.0,0.02473803]
[1763582506400,0.04464,88975.0,88974.0,0.06096803]
[1763582506605,0.04564,88975.0,88974.0,0.06096803]
[1763582507306,0.1544,88975.0,88974.0,0.04802803]
[1763582507700,0.1554,88975.0,88974.0,0.04802803]
[1763582508398,0.1554,88975.0,88974.0,0.06096803]
[1763582508605,0.1544,88975.0,88974.0,0.06096803]
[1763582508806,0.1554,88975.0,88974.0,0.06096803]
[1763582509306,0.002,88975.0,88974.0,0.06096803]
[1763582509814,0.0001686,88983.0,88982.0,0.1583394]
[1763582510002,0.0001686,88983.0,88982.0,0.16053743]
[1763582510204,0.0001686,88983.0,88982.0,0.52133743]
[1763582510511,0.0001686,88983.0,88982.0,0.40882803]
[1763582511310,0.0448086,88983.0,88982.0,0.40882803]
[1763582512107,0.0448086,88983.0,88982.0,0.36299803]
[1763582512306,0.0574086,88983.0,88982.0,0.36299803]
[1763582512508,0.0448086,88983.0,88982.0,0.36299803]
[1763582512814,0.0448086,88983.0,88982.0,0.40882803]
[1763582512815,0.1089286,88983.0,88982.0,0.40882803]
[1763582513004,0.0001686,88983.0,88982.0,0.40882803]
[1763582513205,0.1089286,88983.0,88982.0,0.40882803]
[1763582514003,0.1535686,88983.0,88982.0,0.40882803]
[1763582515318,0.1535686,88983.0,88982.0,0.04802803]
[1763582516720,0.04464,88968.0,88967.0,0.07615184]
[1763582516907,0.15336,88968.0,88967.0,0.04802803]
[1763582517107,0.15336,88968.0,88967.0,0.00219803]
[1763582517504,0.3608,88979.0,88978.0,0.02254]
[1763582517505,0.40544,88979.0,88978.0,0.02254]
[1763582517716,0.15336,88979.0,88978.0,0.04802803]
[1763582518304,0.15336,88979.0,88978.0,0.00219803]
[1763582519515,0.15336,88979.0,88978.0,0.04802803]
[1763582519716,0.15436,88979.0,88978.0,0.04802803]
[1763582520513,0.15336,88979.0,88978.0,0.04802803]
[1763582520715,0.15336,88979.0,88978.0,0.00219803]
[1763582521219,0.15336,88979.0,88978.0,0.02473803]
[1763582521419,0.15336,88979.0,88978.0,0.00219803]
[1763582521618,0.04464,88973.0,88972.0,0.3608]
[1763582521819,0.04464,88973.0,88972.0,0.38571803]
[1763582522215,0.04464,88973.0,88972.0,0.40759803]
[1763582522414,0.04464,88973.0,88972.0,0.36299803]
[1763582522715,0.04564,88973.0,88972.0,0.36299803]
[1763582522910,0.04424,88967.0,88966.0,0.0001686]
[1763582523123,0.40504,88967.0,88966.0,0.0001686]
[1763582523622,0.44523304,88967.0,88966.0,0.0001686]
[1763582524124,0.44523304,88967.0,88951.0,0.3608]
[1763582524125,0.04424,88952.0,88951.0,0.3608]
[1763582524319,0.15296,88952.0,88951.0,0.36299803]
[1763582525222,0.15296,88952.0,88943.0,0.0001686]
[1763582525223,0.04424,88944.0,88943.0,0.0001686]
[1763582525423,0.04424,88944.0,88943.0,0.02508663]
[1763582525821,0.04324,88944.0,88943.0,0.02508663]
[1763582526124,0.04324,88944.0,88943.0,0.04696663]
[1763582526319,0.04324,88944.0,88943.0,0.04796663]
[1763582526820,0.05144425,88955.0,88954.0,0.0446]
[1763582526821,0.04019304,88955.0,88954.0,0.0446]
[1763582527021,0.04019304,88955.0,88954.0,0.04679803]
[1763582527022,0.13188,88955.0,88954.0,0.04679803]
[1763582527422,0.04424,88955.0,88954.0,0.04679803]
[1763582527621,0.15296,88955.0,88954.0,0.04679803]
[1763582527926,0.15296,88955.0,88954.0,0.02491803]
[1763582528121,0.15296,88955.0,88954.0,0.00219803]
[1763582528319,0.04424,88944.0,88943.0,0.0447686]
[1763582528620,0.04424,88944.0,88943.0,0.04696663]
[1763582529127,0.04424,88944.0,88943.0,0.00236663]
[1763582529423,0.04424,88944.0,88943.0,0.04696663]
[1763582529626,0.04424,88944.0,88943.0,0.04896663]
[1763582530013,0.04424,88944.0,88943.0,0.00436663]
[1763582530213,0.04424,88944.0,88943.0,0.0021686]
[1763582530413,0.04424,88927.0,88926.0,0.00028113]
[1763582530628,0.15296,88927.0,88926.0,0.00028113]
[1763582531621,0.15296,88927.0,88926.0,0.00128113]
[1763582532217,0.04424,88919.0,88918.0,0.0001686]
[1763582532622,0.04324,88919.0,88918.0,0.0001686]
[1763582533532,0.04324,88919.0,88918.0,0.0011686]
[1763582534211,0.04324,88919.0,88918.0,0.0021686]
[1763582534616,0.04324,88919.0,88918.0,0.04896663]
[1763582534826,0.152,88919.0,88918.0,0.04896663]
[1763582536234,0.04324,88919.0,88918.0,0.04896663]
[1763582536428,0.152,88919.0,88918.0,0.04896663]
[1763582536629,0.04324,88919.0,88918.0,0.04896663]
[1763582537032,0.38396,88925.0,88924.0,0.0446]
[1763582537229,0.02316,88925.0,88924.0,0.04679803]
[1763582537437,0.0233286,88935.0,88934.0,0.0446]
[1763582537738,0.1320886,88935.0,88934.0,0.04679803]
[1763582537929,0.1531686,88935.0,88934.0,0.04679803]
[1763582538331,0.0001686,88935.0,88934.0,0.04679803]
[1763582538535,0.1089286,88935.0,88934.0,0.04679803]
[1763582539728,0.1531686,88935.0,88934.0,0.04679803]
[1763582539930,0.5139686,88935.0,88934.0,0.04679803]
[1763582540334,0.5139686,88935.0,88934.0,0.00219803]
[1763582540644,0.5139686,88935.0,88918.0,0.0001686]
[1763582540645,0.04424,88919.0,88918.0,0.0001686]
[1763582540829,0.153,88919.0,88918.0,0.02508663]
[1763582541736,0.02316,88919.0,88918.0,0.04696663]
[1763582541943,0.10876,88919.0,88918.0,0.15955703]
[1763582542138,0.3609686,88935.0,88924.0,0.01276]
[1763582542335,0.3609686,88935.0,88934.0,0.04679803]
[1763582542336,0.0444086,88935.0,88934.0,0.04679803]
[1763582542545,0.1531686,88935.0,88934.0,0.04679803]
[1763582542934,0.0001686,88935.0,88934.0,0.15936813]
[1763582543236,0.1320886,88935.0,88934.0,0.04679803]
[1763582544134,0.1320886,88935.0,88918.0,0.0001686]
[1763582544135,0.04424,88919.0,88918.0,0.0001686]
[1763582544334,0.4802186,88935.0,88918.0,0.00236663]
[1763582544335,0.3609686,88935.0,88918.0,0.00236663]
[1763582544529,0.13192,88934.0,88933.0,0.02272]
[1763582544734,0.04424,88934.0,88933.0,0.04679803]